[Event "Rapid della Domenica"]
[Site "Chess.com"]
[Date "2020.05.03"]
[Round "4"]
[White "laremaro"]
[Black "SanSecondoPR"]
[Result "1-0"]
[WhiteElo "1578"]
[BlackElo "1295"]
[TimeControl "720+3"]
[EndTime "7:34:07 PDT"]
[Termination "laremaro ha vinto per abbandono"]

1. e4 {[%clk 0:12:02.9]} 1... e5 {[%clk 0:12:00.2]} 2. Nf3 {[%clk 0:12:02.7]}
2... Nc6 {[%clk 0:11:59]} 3. Bb5 {[%clk 0:12:03.9]} 3... Nge7 {[%clk 0:11:56.7]}
4. O-O {[%clk 0:12:00.4]} 4... g6 {[%clk 0:11:57.1]} 5. d3 {[%clk 0:11:41.4]}
5... Bg7 {[%clk 0:11:58.1]} 6. Bg5 {[%clk 0:11:39]} 6... O-O {[%clk 0:11:58]} 7.
Nc3 {[%clk 0:11:30.5]} 7... f6 {[%clk 0:11:59.3]} 8. Bd2 {[%clk 0:11:26.2]} 8...
d6 {[%clk 0:12:00.1]} 9. a3 {[%clk 0:10:53.3]} 9... Bg4 {[%clk 0:11:59.3]} 10.
h3 {[%clk 0:10:45.9]} 10... Be6 {[%clk 0:11:51.6]} 11. Bc4 {[%clk 0:10:32.3]}
11... d5 {[%clk 0:11:27.6]} 12. Ba2 {[%clk 0:10:19.3]} 12... Bf7 {[%clk
0:11:15.5]} 13. Qc1 {[%clk 0:10:05.6]} 13... Nd4 {[%clk 0:11:10.3]} 14. Nxd4
{[%clk 0:09:59.8]} 14... exd4 {[%clk 0:11:10.1]} 15. Nxd5 {[%clk 0:09:56]} 15...
Nxd5 {[%clk 0:11:06.9]} 16. exd5 {[%clk 0:09:44.8]} 16... Bxd5 {[%clk 0:11:06]}
17. Bxd5+ {[%clk 0:09:43.9]} 17... Qxd5 {[%clk 0:11:04.7]} 18. Bf4 {[%clk
0:09:18.4]} 18... c5 {[%clk 0:11:00.3]} 19. Re1 {[%clk 0:09:15.7]} 19... Qf5
{[%clk 0:10:37.6]} 20. Bh6 {[%clk 0:09:08.7]} 20... g5 {[%clk 0:10:22.6]} 21.
Bxg7 {[%clk 0:09:07]} 21... Kxg7 {[%clk 0:10:20]} 22. Re7+ {[%clk 0:08:55.9]}
22... Rf7 {[%clk 0:10:20]} 23. Qe1 {[%clk 0:08:55.7]} 23... Rf8 {[%clk
0:10:14.1]} 24. Qe2 {[%clk 0:08:53.6]} 24... b5 {[%clk 0:10:04.6]} 25. Re1
{[%clk 0:08:52.6]} 25... c4 {[%clk 0:10:00.2]} 26. dxc4 {[%clk 0:08:48]} 26...
bxc4 {[%clk 0:09:56.2]} 27. Qxc4 {[%clk 0:08:47.3]} 27... Qf4 {[%clk 0:09:28.9]}
28. Qd3 {[%clk 0:08:11.5]} 28... h5 {[%clk 0:09:13.2]} 29. R7e4 {[%clk
0:07:53.5]} 29... Qb8 {[%clk 0:08:48.7]} 30. b3 {[%clk 0:07:40.9]} 30... Rd7
{[%clk 0:08:37.1]} 31. Re7+ {[%clk 0:07:14.5]} 31... Rf7 {[%clk 0:08:33.1]} 32.
Rxf7+ {[%clk 0:07:12.9]} 32... Rxf7 {[%clk 0:08:27.8]} 33. Qxd4 {[%clk
0:07:11.2]} 33... Qc7 {[%clk 0:07:53.6]} 34. c4 {[%clk 0:06:53.9]} 34... Rd7
{[%clk 0:07:50]} 35. Qe3 {[%clk 0:05:45.2]} 35... Qa5 {[%clk 0:07:40.1]} 36. b4
{[%clk 0:04:59.7]} 36... Qf5 {[%clk 0:07:35.8]} 37. Qe6 {[%clk 0:04:48]} 37...
Kg6 {[%clk 0:07:17.3]} 38. Qxf5+ {[%clk 0:04:23.8]} 38... Kxf5 {[%clk
0:07:12.6]} 39. c5 {[%clk 0:04:06.1]} 39... Kf4 {[%clk 0:07:09.3]} 40. g3+
{[%clk 0:04:00.2]} 40... Kf5 {[%clk 0:07:06.4]} 41. b5 {[%clk 0:03:53.4]} 41...
g4 {[%clk 0:07:06.2]} 42. hxg4+ {[%clk 0:03:50.2]} 42... Kxg4 {[%clk 0:06:57.5]}
43. c6 {[%clk 0:03:41.4]} 43... Rc7 {[%clk 0:06:55.9]} 44. Kg2 {[%clk
0:03:39.1]} 44... h4 {[%clk 0:06:51]} 45. Re4+ {[%clk 0:03:38.3]} 45... Kg5
{[%clk 0:06:44.8]} 46. Rxh4 {[%clk 0:03:34.8]} 46... a6 {[%clk 0:06:40.8]} 47.
a4 {[%clk 0:03:36.7]} 47... axb5 {[%clk 0:06:38.5]} 48. axb5 {[%clk 0:03:38]}
48... f5 {[%clk 0:06:37.2]} 49. Rc4 {[%clk 0:03:36.8]} 1-0

[Event "Rapid della Domenica"]
[Site "Chess.com"]
[Date "2020.05.03"]
[Round "4"]
[White "fausto2p"]
[Black "ferrariand"]
[Result "0-1"]
[WhiteElo "970"]
[BlackElo "1514"]
[TimeControl "720+3"]
[EndTime "7:36:06 PDT"]
[Termination "ferrariand ha vinto per scaccomatto"]

1. d4 {[%clk 0:12:02.9]} 1... d5 {[%clk 0:12:00.4]} 2. c4 {[%clk 0:12:04.5]}
2... e6 {[%clk 0:11:55.9]} 3. Nf3 {[%clk 0:12:01.4]} 3... Nf6 {[%clk 0:11:56]}
4. Nc3 {[%clk 0:12:00.7]} 4... Be7 {[%clk 0:11:53.3]} 5. e3 {[%clk 0:11:57.1]}
5... O-O {[%clk 0:11:53.3]} 6. Be2 {[%clk 0:11:46.5]} 6... dxc4 {[%clk
0:11:52.1]} 7. Bxc4 {[%clk 0:11:47.7]} 7... Nd5 {[%clk 0:11:53.4]} 8. O-O {[%clk
0:11:40.8]} 8... Nxc3 {[%clk 0:11:54.3]} 9. bxc3 {[%clk 0:11:40.3]} 9... c5
{[%clk 0:11:54.8]} 10. a4 {[%clk 0:11:30.9]} 10... b6 {[%clk 0:11:54.6]} 11. Ba3
{[%clk 0:11:25.4]} 11... Bb7 {[%clk 0:11:39.5]} 12. Bd3 {[%clk 0:11:17.1]} 12...
Nc6 {[%clk 0:11:23.4]} 13. Qc2 {[%clk 0:10:52.8]} 13... cxd4 {[%clk 0:11:22.5]}
14. Bxe7 {[%clk 0:10:50.4]} 14... Qxe7 {[%clk 0:11:21.9]} 15. Bxh7+ {[%clk
0:10:44.4]} 15... Kh8 {[%clk 0:11:22]} 16. Be4 {[%clk 0:10:41.6]} 16... dxe3
{[%clk 0:11:20.7]} 17. fxe3 {[%clk 0:10:16.9]} 17... Qc5 {[%clk 0:10:07.2]} 18.
Rfe1 {[%clk 0:08:27.9]} 18... Rac8 {[%clk 0:09:30.4]} 19. h4 {[%clk 0:08:24]}
19... Na5 {[%clk 0:09:08.8]} 20. Bxb7 {[%clk 0:08:18.3]} 20... Nxb7 {[%clk
0:09:09.5]} 21. Ng5 {[%clk 0:08:16.1]} 21... g6 {[%clk 0:09:03.7]} 22. Rac1
{[%clk 0:07:41.9]} 22... Qc4 {[%clk 0:08:32.7]} 23. Qf2 {[%clk 0:07:19.8]} 23...
Rc7 {[%clk 0:08:04.6]} 24. Qf6+ {[%clk 0:07:16.6]} 24... Kg8 {[%clk 0:08:01.5]}
25. h5 {[%clk 0:06:40.1]} 25... Qd3 {[%clk 0:07:12.9]} 26. hxg6 {[%clk
0:06:24.5]} 26... Qxg6 {[%clk 0:07:13.1]} 27. Qxg6+ {[%clk 0:06:19.9]} 27...
fxg6 {[%clk 0:07:09.3]} 28. Nxe6 {[%clk 0:06:21.3]} 28... Rc4 {[%clk 0:06:53.4]}
29. Nxf8 {[%clk 0:06:21.1]} 29... Kxf8 {[%clk 0:06:54.6]} 30. Rf1+ {[%clk
0:05:54.7]} 30... Kg7 {[%clk 0:06:55.2]} 31. Rf4 {[%clk 0:05:54.6]} 31... Rc5
{[%clk 0:06:42.9]} 32. e4 {[%clk 0:05:44.3]} 32... Nd6 {[%clk 0:06:41.9]} 33.
Kf2 {[%clk 0:05:09.9]} 33... Rc4 {[%clk 0:06:29.4]} 34. a5 {[%clk 0:04:58.6]}
34... Nxe4+ {[%clk 0:05:47.2]} 35. Ke3 {[%clk 0:04:56.7]} 35... Nd6 {[%clk
0:05:15.4]} 36. Rxc4 {[%clk 0:04:55.9]} 36... Nxc4+ {[%clk 0:05:16.6]} 37. Kd4
{[%clk 0:04:50.6]} 37... Nxa5 {[%clk 0:05:17.7]} 38. c4 {[%clk 0:04:44.8]} 38...
Nb3+ {[%clk 0:05:12]} 39. Kc3 {[%clk 0:04:40.5]} 39... Nxc1 {[%clk 0:05:13.2]}
40. Kb4 {[%clk 0:04:38.5]} 40... a6 {[%clk 0:04:55]} 41. c5 {[%clk 0:04:39.1]}
41... bxc5+ {[%clk 0:04:54.3]} 42. Kxc5 {[%clk 0:04:40.9]} 42... Kf6 {[%clk
0:04:48.8]} 43. Kb6 {[%clk 0:04:42.1]} 43... Ke5 {[%clk 0:04:46.5]} 44. Kxa6
{[%clk 0:04:41.2]} 44... Nd3 {[%clk 0:04:48.1]} 45. Kb5 {[%clk 0:04:40]} 45...
g5 {[%clk 0:04:48.6]} 46. Kc4 {[%clk 0:04:36.4]} 46... Ne1 {[%clk 0:04:49.2]}
47. Kc3 {[%clk 0:04:34.1]} 47... Nxg2 {[%clk 0:04:45.6]} 48. Kd2 {[%clk
0:04:32.6]} 48... Ke4 {[%clk 0:04:46.1]} 49. Ke2 {[%clk 0:04:33.9]} 49... Kf4
{[%clk 0:04:46.6]} 50. Kf2 {[%clk 0:04:34.9]} 50... Ne3 {[%clk 0:04:47.3]} 51.
Kg1 {[%clk 0:04:32.9]} 51... Kg3 {[%clk 0:04:41.4]} 52. Kh1 {[%clk 0:04:28]}
52... g4 {[%clk 0:04:39.2]} 53. Kg1 {[%clk 0:04:29.7]} 53... Nf5 {[%clk
0:04:38.2]} 54. Kh1 {[%clk 0:04:28.8]} 54... Kf2 {[%clk 0:04:38.9]} 55. Kh2
{[%clk 0:04:27.6]} 55... g3+ {[%clk 0:04:40.5]} 56. Kh1 {[%clk 0:04:28.5]} 56...
g2+ {[%clk 0:04:39.3]} 57. Kh2 {[%clk 0:04:29.4]} 57... g1=Q+ {[%clk 0:04:39.8]}
58. Kh3 {[%clk 0:04:29.8]} 58... Qg3# {[%clk 0:04:40.9]} 0-1

[Event "Rapid della Domenica"]
[Site "Chess.com"]
[Date "2020.05.03"]
[Round "4"]
[White "Simo2005"]
[Black "pedrak"]
[Result "1-0"]
[WhiteElo "1746"]
[BlackElo "1676"]
[TimeControl "720+3"]
[EndTime "7:40:16 PDT"]
[Termination "Simo2005 ha vinto per abbandono"]

1. e4 {[%clk 0:11:17]} 1... d6 {[%clk 0:12:00]} 2. d4 {[%clk 0:11:14.3]} 2...
Nf6 {[%clk 0:12:01.1]} 3. Nc3 {[%clk 0:11:13.4]} 3... g6 {[%clk 0:12:02.4]} 4.
Nf3 {[%clk 0:10:55.7]} 4... Bg7 {[%clk 0:12:03]} 5. Be3 {[%clk 0:10:51.7]} 5...
O-O {[%clk 0:11:42.6]} 6. Qd2 {[%clk 0:10:48.1]} 6... Ng4 {[%clk 0:11:43.6]} 7.
Bf4 {[%clk 0:10:41.1]} 7... e5 {[%clk 0:11:36.3]} 8. dxe5 {[%clk 0:10:34.6]}
8... dxe5 {[%clk 0:11:37.6]} 9. Qxd8 {[%clk 0:10:23]} 9... Rxd8 {[%clk
0:11:38.3]} 10. Bg3 {[%clk 0:10:16.6]} 10... Nc6 {[%clk 0:10:13.8]} 11. a3
{[%clk 0:09:26.5]} 11... Nd4 {[%clk 0:09:50.6]} 12. O-O-O {[%clk 0:08:55.9]}
12... c6 {[%clk 0:09:26.5]} 13. h3 {[%clk 0:08:46.1]} 13... Nh6 {[%clk
0:09:18.1]} 14. Bxe5 {[%clk 0:08:20.7]} 14... Bxe5 {[%clk 0:09:06.6]} 15. Nxe5
{[%clk 0:08:06.4]} 15... Be6 {[%clk 0:09:07.4]} 16. Bc4 {[%clk 0:07:24.9]} 16...
f6 {[%clk 0:08:56.1]} 17. Rxd4 {[%clk 0:07:03.4]} 17... Rxd4 {[%clk 0:08:49.8]}
18. Bxe6+ {[%clk 0:06:56.1]} 18... Kf8 {[%clk 0:08:46.8]} 19. Nf3 {[%clk
0:06:28.1]} 19... Rd6 {[%clk 0:08:48.1]} 20. Bb3 {[%clk 0:06:20.1]} 20... b5
{[%clk 0:08:48.5]} 21. Rd1 {[%clk 0:05:56]} 21... Rxd1+ {[%clk 0:08:42.3]} 22.
Nxd1 {[%clk 0:05:52.9]} 22... Re8 {[%clk 0:08:42.7]} 23. Nc3 {[%clk 0:05:38.4]}
23... a6 {[%clk 0:08:39]} 24. Nd2 {[%clk 0:05:05.5]} 24... Nf7 {[%clk
0:08:33.5]} 25. f4 {[%clk 0:04:49.7]} 25... Nd6 {[%clk 0:08:28.7]} 26. Kd1
{[%clk 0:04:25.7]} 26... Nb7 {[%clk 0:08:18]} 27. Ke2 {[%clk 0:04:14.6]} 27...
Nc5 {[%clk 0:08:19.3]} 28. Ba2 {[%clk 0:04:09.6]} 28... a5 {[%clk 0:08:21]} 29.
b4 {[%clk 0:03:58.1]} 29... axb4 {[%clk 0:08:17.5]} 30. axb4 {[%clk 0:03:54.1]}
30... Na6 {[%clk 0:08:19.2]} 31. Kf3 {[%clk 0:03:22.1]} 31... Nxb4 {[%clk
0:08:20.2]} 32. Bb3 {[%clk 0:03:19.1]} 32... Rd8 {[%clk 0:08:03.3]} 33. Ke3
{[%clk 0:03:00.7]} 33... Na6 {[%clk 0:08:01.7]} 34. e5 {[%clk 0:02:47.8]} 34...
Re8 {[%clk 0:08:01.1]} 35. Ke4 {[%clk 0:02:39.5]} 35... Nc5+ {[%clk 0:08:02.4]}
36. Kd4 {[%clk 0:02:35.1]} 36... Nxb3+ {[%clk 0:08:00.1]} 37. Nxb3 {[%clk
0:02:29.7]} 37... fxe5+ {[%clk 0:07:48]} 38. fxe5 {[%clk 0:02:28.5]} 38... Ke7
{[%clk 0:07:45.3]} 39. Nc5 {[%clk 0:02:13.7]} 39... Rd8+ {[%clk 0:07:41.3]} 40.
Ke3 {[%clk 0:02:04.2]} 40... b4 {[%clk 0:07:03.3]} 41. N3e4 {[%clk 0:01:58.7]}
41... Rd5 {[%clk 0:07:01.8]} 42. e6 {[%clk 0:01:42.9]} 42... h6 {[%clk
0:06:54.2]} 43. Kf4 {[%clk 0:01:10.9]} 43... Rf5+ {[%clk 0:06:22.4]} 44. Ke3
{[%clk 0:01:06.9]} 44... Rd5 {[%clk 0:06:23.3]} 45. Kf4 {[%clk 0:00:57.1]} 45...
g5+ {[%clk 0:06:20.2]} 46. Kg4 {[%clk 0:00:53.9]} 46... Rd1 {[%clk 0:05:47]} 47.
Kh5 {[%clk 0:00:43.3]} 47... Rg1 {[%clk 0:05:48.3]} 48. g3 {[%clk 0:00:32.4]}
48... Rg2 {[%clk 0:05:49.6]} 49. Kxh6 {[%clk 0:00:27.7]} 49... Rxc2 {[%clk
0:05:51]} 50. Kxg5 {[%clk 0:00:28]} 50... Rc4 {[%clk 0:05:52.6]} 51. h4 {[%clk
0:00:22.4]} 51... b3 {[%clk 0:05:54.5]} 52. Nxb3 {[%clk 0:00:21.5]} 52... Rxe4
{[%clk 0:05:56.2]} 53. h5 {[%clk 0:00:19.1]} 53... Re5+ {[%clk 0:05:57.4]} 54.
Kg6 {[%clk 0:00:16]} 54... Rxe6+ {[%clk 0:05:59.2]} 55. Kg7 {[%clk 0:00:17.6]}
55... Re2 {[%clk 0:05:59.1]} 56. h6 {[%clk 0:00:14.8]} 56... Rg2 {[%clk
0:06:00.5]} 57. Nd4 {[%clk 0:00:12]} 57... Rxg3+ {[%clk 0:06:02.2]} 58. Kh8
{[%clk 0:00:13.4]} 58... c5 {[%clk 0:06:02.7]} 59. Nf5+ {[%clk 0:00:15.3]} 59...
Kf7 {[%clk 0:06:02.3]} 60. Nxg3 {[%clk 0:00:15.8]} 60... c4 {[%clk 0:06:03.7]}
61. Ne4 {[%clk 0:00:15.2]} 61... Kf8 {[%clk 0:06:03.9]} 62. Kh7 {[%clk
0:00:14.9]} 62... Kf7 {[%clk 0:06:05.3]} 63. Nd6+ {[%clk 0:00:13.8]} 63... Kf8
{[%clk 0:05:59.5]} 64. Nxc4 {[%clk 0:00:13.7]} 64... Kf7 {[%clk 0:05:58.8]} 65.
Ne5+ {[%clk 0:00:14.5]} 65... Kf8 {[%clk 0:06:00.5]} 66. Kg6 {[%clk 0:00:15.7]}
1-0

[Event "Rapid della Domenica"]
[Site "Chess.com"]
[Date "2020.05.03"]
[Round "5"]
[White "moha1812med"]
[Black "OMatteoWuO"]
[Result "0-1"]
[WhiteElo "995"]
[BlackElo "1204"]
[TimeControl "720+3"]
[EndTime "7:47:01 PDT"]
[Termination "OMatteoWuO ha vinto per abbandono"]

1. d4 {[%clk 0:12:00.7]} 1... Nf6 {[%clk 0:11:59.7]} 2. c4 {[%clk 0:11:57.8]}
2... g6 {[%clk 0:11:55.8]} 3. Nc3 {[%clk 0:11:43.5]} 3... Bg7 {[%clk 0:11:55.1]}
4. e4 {[%clk 0:11:39.6]} 4... d6 {[%clk 0:11:55.9]} 5. Nf3 {[%clk 0:11:38.2]}
5... O-O {[%clk 0:11:54.8]} 6. Be2 {[%clk 0:11:40.3]} 6... Nbd7 {[%clk 0:11:28]}
7. O-O {[%clk 0:11:41.7]} 7... e5 {[%clk 0:11:27.5]} 8. d5 {[%clk 0:11:39.1]}
8... Nc5 {[%clk 0:11:20.5]} 9. Qc2 {[%clk 0:11:38.6]} 9... a5 {[%clk 0:11:14.9]}
10. Bg5 {[%clk 0:11:23.8]} 10... h6 {[%clk 0:11:12.7]} 11. Bxf6 {[%clk
0:11:24.7]} 11... Qxf6 {[%clk 0:11:13.6]} 12. h3 {[%clk 0:11:19.3]} 12... h5
{[%clk 0:11:06.8]} 13. Na4 {[%clk 0:11:11.1]} 13... Nxa4 {[%clk 0:10:49.4]} 14.
Qxa4 {[%clk 0:11:12]} 14... Qe7 {[%clk 0:10:47.9]} 15. Qc2 {[%clk 0:11:08.8]}
15... f5 {[%clk 0:10:44.9]} 16. exf5 {[%clk 0:10:46.2]} 16... Bxf5 {[%clk
0:10:41.6]} 17. Bd3 {[%clk 0:10:38]} 17... Bxd3 {[%clk 0:10:40.5]} 18. Qxd3
{[%clk 0:10:39.3]} 18... e4 {[%clk 0:10:40.5]} 19. Qc2 {[%clk 0:10:21.5]} 19...
exf3 {[%clk 0:10:37.1]} 20. gxf3 {[%clk 0:10:23]} 20... Qg5+ {[%clk 0:10:37.3]}
21. Kh1 {[%clk 0:10:18.4]} 21... Rxf3 {[%clk 0:10:38.6]} 22. Kh2 {[%clk
0:09:56.2]} 22... Be5+ {[%clk 0:10:36.1]} 0-1

[Event "Rapid della Domenica"]
[Site "Chess.com"]
[Date "2020.05.03"]
[Round "5"]
[White "ferrariand"]
[Black "sirmale49"]
[Result "1-0"]
[WhiteElo "1521"]
[BlackElo "1402"]
[TimeControl "720+3"]
[EndTime "7:49:35 PDT"]
[Termination "ferrariand ha vinto per abbandono"]

1. e4 {[%clk 0:12:02.9]} 1... d5 {[%clk 0:11:54.1]} 2. exd5 {[%clk 0:12:03.2]}
2... Qxd5 {[%clk 0:11:55.4]} 3. Nc3 {[%clk 0:12:03.7]} 3... Qd6 {[%clk
0:11:55.7]} 4. d4 {[%clk 0:12:03.8]} 4... c6 {[%clk 0:11:56.1]} 5. Nf3 {[%clk
0:12:02.3]} 5... Bg4 {[%clk 0:11:56]} 6. Be2 {[%clk 0:12:03.1]} 6... Nf6 {[%clk
0:11:56.2]} 7. O-O {[%clk 0:12:03.4]} 7... e6 {[%clk 0:11:52.1]} 8. Re1 {[%clk
0:11:55]} 8... Be7 {[%clk 0:11:49.8]} 9. Ne5 {[%clk 0:11:55.1]} 9... Bxe2 {[%clk
0:11:49.5]} 10. Rxe2 {[%clk 0:11:55.8]} 10... Nbd7 {[%clk 0:11:40.2]} 11. Bf4
{[%clk 0:11:53.1]} 11... Nxe5 {[%clk 0:11:26.7]} 12. dxe5 {[%clk 0:11:32.2]}
12... Qxd1+ {[%clk 0:11:24.3]} 13. Rxd1 {[%clk 0:11:32.8]} 13... Nd5 {[%clk
0:11:25.3]} 14. Nxd5 {[%clk 0:11:32.6]} 14... cxd5 {[%clk 0:11:26.4]} 15. c3
{[%clk 0:11:21.5]} 15... O-O {[%clk 0:11:25.3]} 16. h3 {[%clk 0:11:15.5]} 16...
Rac8 {[%clk 0:11:25.9]} 17. Rd3 {[%clk 0:11:12.8]} 17... Rc4 {[%clk 0:11:25.4]}
18. Bd2 {[%clk 0:10:57.5]} 18... b5 {[%clk 0:11:15]} 19. Rg3 {[%clk 0:10:57.6]}
19... g6 {[%clk 0:11:07.3]} 20. Bg5 {[%clk 0:10:11.6]} 20... f6 {[%clk
0:11:03.1]} 21. exf6 {[%clk 0:10:06.7]} 21... Bxf6 {[%clk 0:11:01.2]} 22. Rxe6
{[%clk 0:10:04.6]} 22... Bxg5 {[%clk 0:10:55.6]} 23. Rxg5 {[%clk 0:10:05.3]}
23... Rcf4 {[%clk 0:10:50.8]} 24. f3 {[%clk 0:10:02.4]} 24... R4f5 {[%clk
0:10:42.9]} 25. Rxf5 {[%clk 0:09:59.7]} 25... Rxf5 {[%clk 0:10:38.3]} 26. Re7
{[%clk 0:09:55.8]} 26... Rf7 {[%clk 0:10:37.9]} 27. Rxf7 {[%clk 0:09:54.8]}
27... Kxf7 {[%clk 0:10:38.9]} 28. Kf2 {[%clk 0:09:56.6]} 28... Kf6 {[%clk
0:10:40.3]} 29. Ke3 {[%clk 0:09:57.9]} 29... Ke5 {[%clk 0:10:41.1]} 30. f4+
{[%clk 0:09:54.9]} 30... Ke6 {[%clk 0:10:38.4]} 31. Kd4 {[%clk 0:09:55.9]} 31...
Kd6 {[%clk 0:10:38]} 32. g4 {[%clk 0:09:56.3]} 32... a5 {[%clk 0:10:35.2]} 33.
b3 {[%clk 0:09:57]} 33... h6 {[%clk 0:10:21.3]} 34. a4 {[%clk 0:09:54.9]} 34...
bxa4 {[%clk 0:10:09.2]} 35. bxa4 {[%clk 0:09:56.2]} 35... h5 {[%clk 0:10:05.7]}
36. f5 {[%clk 0:09:47.1]} 36... hxg4 {[%clk 0:09:58.6]} 37. hxg4 {[%clk
0:09:48.2]} 37... gxf5 {[%clk 0:09:58]} 38. gxf5 {[%clk 0:09:49.3]} 38... Ke7
{[%clk 0:09:56]} 39. Kxd5 {[%clk 0:09:49.9]} 39... Kf6 {[%clk 0:09:57.2]} 40.
Ke4 {[%clk 0:09:50.4]} 1-0

[Event "Rapid della Domenica"]
[Site "Chess.com"]
[Date "2020.05.03"]
[Round "5"]
[White "pedrak"]
[Black "fisherpez"]
[Result "1-0"]
[WhiteElo "1690"]
[BlackElo "1615"]
[TimeControl "720+3"]
[EndTime "7:50:26 PDT"]
[Termination "pedrak ha vinto per scaccomatto"]

1. Nf3 {[%clk 0:12:02.9]} 1... e6 {[%clk 0:12:01.6]} 2. g3 {[%clk 0:12:04.4]}
2... b6 {[%clk 0:12:02.8]} 3. Bg2 {[%clk 0:12:06.2]} 3... Nc6 {[%clk 0:12:05]}
4. O-O {[%clk 0:12:04.2]} 4... Bb7 {[%clk 0:12:05.9]} 5. d3 {[%clk 0:12:05.7]}
5... Be7 {[%clk 0:12:07.5]} 6. e4 {[%clk 0:12:07]} 6... h6 {[%clk 0:12:09.2]} 7.
Re1 {[%clk 0:12:08]} 7... d6 {[%clk 0:12:09.9]} 8. Nc3 {[%clk 0:12:07.1]} 8...
Qd7 {[%clk 0:12:11.7]} 9. a4 {[%clk 0:11:56]} 9... Nf6 {[%clk 0:12:12.3]} 10. h3
{[%clk 0:11:50.5]} 10... Nh7 {[%clk 0:12:11.2]} 11. Be3 {[%clk 0:11:49]} 11...
Bf6 {[%clk 0:12:05.2]} 12. Qd2 {[%clk 0:11:39.8]} 12... O-O {[%clk 0:11:53.9]}
13. Nh2 {[%clk 0:11:37.7]} 13... e5 {[%clk 0:11:52.4]} 14. Ng4 {[%clk
0:11:36.5]} 14... Bg5 {[%clk 0:11:46.1]} 15. f4 {[%clk 0:11:38.1]} 15... exf4
{[%clk 0:11:44.9]} 16. gxf4 {[%clk 0:11:39.9]} 16... Be7 {[%clk 0:11:41]} 17.
Nd5 {[%clk 0:11:39.5]} 17... Nd8 {[%clk 0:11:18.6]} 18. c4 {[%clk 0:11:25.4]}
18... Bxd5 {[%clk 0:11:18.9]} 19. cxd5 {[%clk 0:11:26.6]} 19... Nf6 {[%clk
0:11:19.9]} 20. Bf3 {[%clk 0:11:14.8]} 20... Nb7 {[%clk 0:11:20]} 21. Qg2 {[%clk
0:11:13.2]} 21... Kh8 {[%clk 0:11:11.1]} 22. Bd4 {[%clk 0:11:14.2]} 22... Nc5
{[%clk 0:11:05.9]} 23. Qd2 {[%clk 0:11:07]} 23... Nb3 {[%clk 0:11:03.2]} 24. Qc3
{[%clk 0:11:08.5]} 24... Nxd4 {[%clk 0:10:42.7]} 25. Qxd4 {[%clk 0:11:09.2]}
25... h5 {[%clk 0:10:21.4]} 26. Nf2 {[%clk 0:11:04.3]} 26... Kg8 {[%clk
0:09:47.9]} 27. Kh2 {[%clk 0:11:04.9]} 27... Ne8 {[%clk 0:09:45.8]} 28. Rg1
{[%clk 0:11:05.6]} 28... Bf6 {[%clk 0:09:38.8]} 29. e5 {[%clk 0:11:06.8]} 29...
dxe5 {[%clk 0:09:40.5]} 30. fxe5 {[%clk 0:11:08.4]} 30... c5 {[%clk 0:09:12.4]}
31. Qe4 {[%clk 0:10:59.5]} 31... Bh4 {[%clk 0:08:58.5]} 32. Qxh4 {[%clk
0:10:51.8]} 32... f6 {[%clk 0:09:00.8]} 33. e6 {[%clk 0:10:24.5]} 33... Qd6+
{[%clk 0:08:57]} 34. Kh1 {[%clk 0:10:26.2]} 34... Qe5 {[%clk 0:08:42]} 35. Qxh5
{[%clk 0:10:09.4]} 35... Qxb2 {[%clk 0:08:42.4]} 36. Be4 {[%clk 0:09:56.4]}
36... f5 {[%clk 0:08:22.6]} 37. Bxf5 {[%clk 0:09:57.5]} 37... Nf6 {[%clk
0:08:24.7]} 38. Qg6 {[%clk 0:09:51.6]} 38... Qxf2 {[%clk 0:08:24.1]} 39. Qxg7#
{[%clk 0:09:52.7]} 1-0

[Event "Rapid della Domenica"]
[Site "Chess.com"]
[Date "2020.05.03"]
[Round "5"]
[White "MarcoCiva"]
[Black "BAKR1980"]
[Result "0-1"]
[WhiteElo "1420"]
[BlackElo "1657"]
[TimeControl "720+3"]
[EndTime "7:51:30 PDT"]
[Termination "BAKR1980 ha vinto per scaccomatto"]

1. d4 {[%clk 0:12:02.9]} 1... d5 {[%clk 0:11:56.8]} 2. c4 {[%clk 0:12:03.9]}
2... c6 {[%clk 0:11:47.9]} 3. Nc3 {[%clk 0:12:04.8]} 3... Nf6 {[%clk 0:11:48.2]}
4. Nf3 {[%clk 0:12:04.9]} 4... e6 {[%clk 0:11:48.9]} 5. Bg5 {[%clk 0:12:06.1]}
5... Be7 {[%clk 0:11:50]} 6. e3 {[%clk 0:12:06.9]} 6... O-O {[%clk 0:11:47]} 7.
cxd5 {[%clk 0:12:06.9]} 7... cxd5 {[%clk 0:11:48.1]} 8. Bd3 {[%clk 0:12:06.9]}
8... a6 {[%clk 0:11:34.5]} 9. O-O {[%clk 0:12:07.7]} 9... b5 {[%clk 0:11:35.7]}
10. a3 {[%clk 0:12:04.7]} 10... Bb7 {[%clk 0:11:32.2]} 11. b4 {[%clk 0:12:06]}
11... Nbd7 {[%clk 0:11:24.2]} 12. Qc2 {[%clk 0:11:57.3]} 12... Rc8 {[%clk
0:11:22.6]} 13. Ne5 {[%clk 0:11:49.8]} 13... Ne4 {[%clk 0:10:28.6]} 14. Bxe7
{[%clk 0:11:29.6]} 14... Qxe7 {[%clk 0:10:27.7]} 15. Bxe4 {[%clk 0:11:16]} 15...
dxe4 {[%clk 0:10:22.9]} 16. Rac1 {[%clk 0:11:04.4]} 16... Nxe5 {[%clk
0:10:13.8]} 17. dxe5 {[%clk 0:11:03.9]} 17... Qg5 {[%clk 0:10:10.4]} 18. Qb1
{[%clk 0:10:39.1]} 18... Qxe5 {[%clk 0:10:06.9]} 19. Ne2 {[%clk 0:10:25.1]}
19... Bd5 {[%clk 0:09:52.5]} 20. Rxc8 {[%clk 0:10:12.6]} 20... Rxc8 {[%clk
0:09:53.4]} 21. Rc1 {[%clk 0:10:12.8]} 21... Bc4 {[%clk 0:09:30.7]} 22. Nd4
{[%clk 0:10:04.6]} 22... f5 {[%clk 0:09:09.6]} 23. f4 {[%clk 0:09:48.6]} 23...
exf3 {[%clk 0:09:07.7]} 24. Nxf3 {[%clk 0:09:50.6]} 24... Qxe3+ {[%clk
0:09:09.1]} 25. Kh1 {[%clk 0:09:50.9]} 25... Qxa3 {[%clk 0:08:59.3]} 26. Ng5
{[%clk 0:09:35.4]} 26... Rf8 {[%clk 0:08:20.1]} 27. Re1 {[%clk 0:09:14.3]} 27...
Qa2 {[%clk 0:07:22.4]} 28. Qxa2 {[%clk 0:09:01.3]} 28... Bxa2 {[%clk 0:07:23.3]}
29. Nxe6 {[%clk 0:09:03]} 29... Re8 {[%clk 0:07:20.7]} 30. Nc7 {[%clk
0:09:04.4]} 30... Rxe1# {[%clk 0:07:21.5]} 0-1